fUST/lending_fUST_20240813
["ID","MTS","AMOUNT","RATE_DAILY","PERIOD"]
[334770524,1723541440387,-625.29,0.00013698,2]
[334770525,1723541440399,-500.0,0.00013698,2]
[334770526,1723541440410,-500.0,0.00013698,2]
[334770527,1723541440420,-500.0,0.00013698,2]
[334770528,1723541440430,-347.46826741,0.00013698,2]
[334770529,1723541440442,-163.38219045,0.00013698,2]
[334770530,1723541440451,-500.0,0.00013698,2]
[334770531,1723541440460,-500.0,0.00013698,2]
[334770532,1723541440470,-538.71,0.00013698,2]
[334770533,1723541440479,-500.0,0.00013698,2]
[334770534,1723541440488,-1282.81,0.00013698,2]
[334770535,1723541440497,-500.0,0.00013698,2]
[334770536,1723541440507,-742.61,0.00013698,2]
[334770537,1723541440517,-504.93496476,0.00013698,2]
[334770538,1723541440526,-500.0,0.00013698,2]
[334770539,1723541440536,-1517.44,0.00013698,2]
[334770540,1723541440548,-696.72,0.00013698,2]
[334770541,1723541440559,-500.0,0.00013698,2]
[334770542,1723541440569,-500.0,0.00013698,2]
[334770543,1723541440578,-500.0,0.00013698,2]
[334770544,1723541440587,-500.0,0.00013698,2]
[334770545,1723541440598,-500.0,0.00013698,2]
[334770546,1723541440607,-500.0,0.00013698,2]
[334770547,1723541440617,-1064.12,0.00013698,2]
[334770548,1723541440629,-500.0,0.00013698,2]
[334770549,1723541440638,-6203.45,0.00013698,2]
[334770550,1723541440647,-500.0,0.00013698,2]
[334770551,1723541440657,-863.91,0.00013698,2]
[334770552,1723541440666,-500.0,0.00013698,2]
[334770553,1723541440676,-879.91,0.00013698,2]
[334770554,1723541440687,-500.0,0.00013698,2]
[334770555,1723541440697,-1975.25,0.00013698,2]
[334770556,1723541440706,-500.0,0.00013698,2]
[334770557,1723541440715,-504.02,0.00013698,2]
[334770558,1723541440725,-503.73544608,0.00013698,2]
[334770559,1723541440735,-1644.08,0.00013698,2]
[334770560,1723541440744,-500.0,0.00013698,2]
[334770561,1723541440753,-986.01,0.00013698,2]
[334770562,1723541440763,-500.0,0.00013698,2]
[334770563,1723541440773,-4402.16,0.00013698,2]
[334770564,1723541440783,-500.0,0.00013698,2]
[334770565,1723541440792,-500.0,0.00013698,2]
[334770566,1723541440803,-500.0,0.00013698,2]
[334770567,1723541440813,-500.0,0.00013698,2]
[334770568,1723541440822,-1214.96,0.00013698,2]
[334770569,1723541440832,-909.85,0.00013698,2]
[334770570,1723541440841,-492.82389326,0.00013698,2]
[334770571,1723541440850,-3086.35,0.00013698,2]
[334770572,1723541440859,-500.0,0.00013698,2]
[334770573,1723541440868,-500.0,0.00013698,2]
[334770574,1723541440878,-500.0,0.00013698,2]
[334770575,1723541440888,-589.21,0.00013698,2]
[334770576,1723541440897,-1226.0,0.00013698,2]
[334770577,1723541440907,-685.7,0.00013698,2]
[334770578,1723541440916,-507.12995694,0.00013698,2]
[334770579,1723541440925,-500.0,0.00013698,2]
[334770580,1723541440935,-500.0,0.00013698,2]
[334770581,1723541440945,-500.0,0.00013698,2]
[334770582,1723541440954,-505.77318886,0.00013698,2]
[334770583,1723541440963,-1252.38,0.00013698,2]
[334770584,1723541440972,-503.56683525,0.00013698,2]
[334770585,1723541440982,-500.0,0.00013698,2]
[334770586,1723541440991,-689.64,0.00013698,2]
[334770587,1723541441001,-507.22532629,0.00013698,2]
[334770588,1723541441010,-500.0,0.00013698,2]
[334770589,1723541441019,-1136.36,0.00013698,2]
[334770590,1723541441029,-500.0,0.00013698,2]
[334770591,1723541441039,-780.28,0.00013698,2]
[334770592,1723541441049,-1775.88,0.00013698,2]
[334770593,1723541441058,-500.0,0.00013698,2]
[334770594,1723541441068,-500.0,0.00013698,2]
[334770595,1723541441078,-504.48336683,0.00013698,2]
[334770596,1723541441088,-500.0,0.00013698,2]
[334770597,1723541441097,-503.6395211,0.00013698,2]
[334770598,1723541441107,-694.76,0.00013698,2]
[334770599,1723541441117,-504.90979449,0.00013698,2]
[334770600,1723541441127,-3410.05,0.00013698,2]
[334770601,1723541441138,-1236.13,0.00013698,2]
[334770602,1723541441151,-6397.36,0.00013698,2]
[334770603,1723541441162,-500.0,0.00013698,2]
[334770604,1723541441172,-500.0,0.00013698,2]
[334770605,1723541441181,-500.0,0.00013698,2]
[334770606,1723541441192,-500.0,0.00013698,2]
[334770607,1723541441202,-411.93110367,0.00013698,2]
[334770608,1723541441211,-1276.02,0.00013698,2]
[334770609,1723541441221,-500.0,0.00013698,2]
[334770610,1723541441230,-500.0,0.00013698,2]
[334770611,1723541441240,-500.41746684,0.00013698,2]
[334770612,1723541441250,-509.96240473,0.00013698,2]
[334770613,1723541441260,-500.0,0.00013698,2]
[334770614,1723541441269,-1169.55,0.00013698,2]
[334770615,1723541441279,-500.0,0.00013698,2]
[334770616,1723541441288,-500.0,0.00013698,2]
[334770617,1723541441297,-500.0,0.00013698,2]
[334770618,1723541441307,-3473.73,0.00013698,2]
[334770619,1723541441316,-563.84,0.00013698,2]
[334770620,1723541441326,-500.0,0.00013698,2]
[334770621,1723541441335,-173.88809866,0.00013698,2]
[334770622,1723541441345,-1081.86,0.00013698,2]
[334770623,1723541441355,-600.52,0.00013698,2]
[334770624,1723541441364,-696.9,0.00013698,2]
[334770625,1723541441374,-500.0,0.00013698,2]
[334770626,1723541441384,-500.0,0.00013698,2]
[334770627,1723541441394,-500.0,0.00013698,2]
[334770628,1723541441403,-500.0,0.00013698,2]
[334770629,1723541441413,-926.5,0.00013698,2]
[334770630,1723541441423,-500.0,0.00013698,2]
[334770631,1723541441433,-715.08,0.00013698,2]
[334770632,1723541441444,-500.0,0.00013698,2]
[334770633,1723541441453,-500.0,0.00013698,2]
[334770634,1723541441462,-500.0,0.00013698,2]
[334770635,1723541441472,-500.0,0.00013698,2]
[334770636,1723541441481,-500.0,0.00013698,2]
[334770637,1723541441491,-500.0,0.00013698,2]
[334770638,1723541441500,-524.46,0.00013698,2]
[334770639,1723541441509,-500.0,0.00013698,2]
[334770640,1723541441519,-502.55,0.00013698,2]
[334770641,1723541441529,-512.12221757,0.00013698,2]
[334770642,1723541441540,-855.06,0.00013698,2]
[334770643,1723541441552,-500.0,0.00013698,2]
[334770644,1723541441562,-500.0,0.00013698,2]
[334770645,1723541441571,-3820.19,0.00013698,2]
[334770646,1723541441581,-1998.13,0.00013698,2]
[334770647,1723541441591,-925.93,0.00013698,2]
[334770648,1723541441601,-830.94,0.00013698,2]
[334770649,1723541441610,-1458.34709771,0.00013698,2]
[334770655,1723541443084,-157.00320308,9.999e-05,2]
[334770656,1723541443094,-165.7378718,9.999e-05,2]
[334770657,1723541443104,-235.96290229,0.00013698,2]
[334770658,1723541443114,-500.0,0.00013698,2]
[334770659,1723541443123,-500.0,0.00013698,2]
[334770660,1723541443133,-504.58301167,0.00013698,2]
[334770661,1723541443142,-500.0,0.00013698,2]
[334770662,1723541443152,-500.0,0.00013698,2]
[334770663,1723541443161,-510.71182565,0.00013698,2]
[334770664,1723541443171,-2914.93,0.00013698,2]
[334770665,1723541443180,-1217.59,0.00013698,2]
[334770666,1723541443198,-500.0,0.00013698,2]
[334770667,1723541443208,-757.06,0.00013698,2]
[334770668,1723541443218,-527.41057258,0.00013698,2]
[334770669,1723541443227,-778.0,0.00013698,2]
[334770670,1723541443239,-442.59706221,0.00013698,2]
[334770671,1723541443249,-500.0,0.00013698,2]
[334770672,1723541443258,-500.0,0.00013698,2]
[334770673,1723541443267,-507.34383413,0.00013698,2]
[334770674,1723541443276,-965.21,0.00013698,2]
[334770675,1723541443286,-500.0,0.00013698,2]
[334770676,1723541443295,-500.0,0.00013698,2]
[334770677,1723541443304,-502.53330438,0.00013698,2]
[334770678,1723541443314,-235.05888984,0.00013698,2]
[334770679,1723541443324,-500.0,0.00013698,2]
[334770680,1723541443334,-3000.0,0.00013699,2]
[334770681,1723541443343,-1226.260052,0.00013699,2]
[334770682,1723541443353,-150.0,0.00013851,2]
[334770683,1723541443363,-508.0,0.00013851,2]
[334770684,1723541443372,-1413.0,0.00013851,2]
[334770685,1723541443382,-1769.82008599,0.00013872,2]
[334770686,1723541443391,-153.0,0.00013902,2]
[334770688,1723541443401,-153.0,0.00013902,2]
[334770689,1723541443412,-153.0,0.00013902,2]
[334770690,1723541443421,-2500.02833564,0.00013953,2]
[334770691,1723541443431,-500.0,0.00013972,2]
[334770692,1723541443444,-500.0,0.00013972,2]
[334770693,1723541443454,-500.0,0.00013972,2]
[334770694,1723541443464,-500.0,0.00013972,2]
[334770695,1723541443474,-500.0,0.00013972,2]
[334770696,1723541443484,-500.0,0.00013972,2]
[334770697,1723541443493,-222.76847662,0.00013972,2]
[334770698,1723541443503,-500.0,0.00013972,2]
[334770699,1723541443513,-500.0,0.00013972,2]
[334770700,1723541443523,-395.18494103,0.00013972,2]
[334770701,1723541443536,-512.13,0.00013972,2]
[334770702,1723541443546,-348.10991338,0.00013972,2]
[334770703,1723541443758,-2111.27572321,9.999e-05,2]
[334770704,1723541443768,-500.0,0.00013698,2]
[334770705,1723541443778,-500.0,0.00013698,2]
[334770706,1723541443789,-151.89008662,0.00013972,2]
[334770707,1723541443798,-510.75474514,0.00013972,2]
[334770708,1723541443807,-500.0,0.00013972,2]
[334770709,1723541443817,-500.0,0.00013972,2]
[334770710,1723541443827,-500.0,0.00013972,2]
[334770711,1723541443837,-500.0,0.00013972,2]
[334770712,1723541443847,-500.0,0.00013972,2]
[334770713,1723541443858,-500.0,0.00013972,2]
[334770714,1723541443868,-627.04,0.00013972,2]
[334770715,1723541443878,-500.0,0.00013972,2]
[334770716,1723541443888,-500.0,0.00013972,2]
[334770717,1723541443897,-512.81,0.00013972,2]
[334770718,1723541443907,-500.0,0.00013972,2]
[334770719,1723541443919,-500.0,0.00013972,2]
[334770720,1723541443930,-500.0,0.00013972,2]
[334770721,1723541443941,-500.0,0.00013972,2]
[334770722,1723541443951,-500.0,0.00013972,2]
[334770723,1723541443962,-743.97,0.00013972,2]
[334770724,1723541443972,-500.0,0.00013972,2]
[334770725,1723541443981,-689.38,0.00013972,2]
[334770726,1723541443990,-703.39,0.00013972,2]
[334770727,1723541443999,-500.0,0.00013972,2]
[334770728,1723541444009,-491.63,0.00013972,2]
[334770729,1723541444018,-284.84680017,0.00013972,2]
[334770730,1723541444028,-500.0,0.00013972,2]
[334770731,1723541444038,-500.0,0.00013972,2]
[334770732,1723541444047,-500.0,0.00013972,2]
[334770733,1723541444057,-500.0,0.00013972,2]
[334770734,1723541444067,-500.0,0.00013972,2]
[334770735,1723541444076,-500.0,0.00013972,2]
[334770736,1723541444086,-537.07,0.00013972,2]
[334770737,1723541444095,-500.0,0.00013972,2]
[334770738,1723541444105,-500.0,0.00013972,2]
[334770739,1723541444115,-500.0,0.00013972,2]
[334770740,1723541444124,-1041.21,0.00013972,2]
[334770741,1723541444134,-500.0,0.00013972,2]
[334770742,1723541444143,-982.39,0.00013972,2]
[334770743,1723541444153,-500.0,0.00013972,2]
[334770744,1723541444163,-500.0,0.00013972,2]
[334770745,1723541444173,-669.07,0.00013972,2]
[334770746,1723541444183,-706.35,0.00013972,2]
[334770747,1723541444194,-500.0,0.00013972,2]
[334770748,1723541444204,-500.0,0.00013972,2]
[334770749,1723541444214,-500.0,0.00013972,2]
[334770750,1723541444224,-1602.81,0.00013972,2]
[334770751,1723541444233,-500.0,0.00013972,2]
[334770752,1723541444243,-500.0,0.00013972,2]
[334770753,1723541444252,-500.0,0.00013972,2]
[334770754,1723541444262,-500.0,0.00013972,2]
[334770755,1723541444271,-632.85,0.00013972,2]
[334770756,1723541444281,-500.0,0.00013972,2]
[334770757,1723541444290,-200.34955745,0.00013972,2]
[334770758,1723541444300,-701.33,0.00013972,2]
[334770759,1723541444309,-704.63,0.00013972,2]
[334770760,1723541444319,-531.35,0.00013972,2]
[334770761,1723541444328,-500.0,0.00013972,2]
[334770762,1723541444338,-500.0,0.00013972,2]
[334770763,1723541444347,-500.0,0.00013972,2]
[334770764,1723541444357,-500.0,0.00013972,2]
[334770765,1723541444367,-500.0,0.00013972,2]
[334770766,1723541444376,-500.0,0.00013972,2]
[334770767,1723541444386,-507.11683935,0.00013972,2]
[334770768,1723541444396,-500.0,0.00013972,2]
[334770769,1723541444406,-500.0,0.00013972,2]
[334770770,1723541444416,-284.30155513,0.00013972,2]
[334770771,1723541444426,-782.19,0.00013972,2]
[334770772,1723541444437,-815.65,0.00013972,2]
[334770773,1723541444448,-500.0,0.00013972,2]
[334770774,1723541444458,-500.0,0.00013972,2]
[334770775,1723541444468,-500.0,0.00013972,2]
[334770776,1723541444478,-500.0,0.00013972,2]
[334770777,1723541444487,-500.0,0.00013972,2]
[334770778,1723541444497,-846.92,0.00013972,2]
[334770779,1723541444507,-252.32921421,0.00013972,2]
[334770780,1723541444517,-500.0,0.00013972,2]
[334770781,1723541444526,-500.0,0.00013972,2]
[334770782,1723541444536,-500.0,0.00013972,2]
[334770783,1723541444548,-500.0,0.00013972,2]
[334770784,1723541444558,-625.29,0.00013972,2]
[334770785,1723541444568,-507.18228602,0.00013972,2]
[334770786,1723541444578,-500.0,0.00013972,2]
[334770787,1723541444589,-500.0,0.00013972,2]
[334770788,1723541444598,-538.71,0.00013972,2]
[334770789,1723541444608,-535.96770935,0.00013972,2]
[334770790,1723541444618,-1282.81,0.00013972,2]
[334770791,1723541444631,-500.0,0.00013972,2]
[334770792,1723541444641,-742.61,0.00013972,2]
[334770793,1723541444650,-500.0,0.00013972,2]
[334770794,1723541444660,-1517.44,0.00013972,2]
[334770795,1723541444669,-696.72,0.00013972,2]
[334770796,1723541444679,-500.0,0.00013972,2]
[334770797,1723541444691,-560.97641245,0.00013972,2]
[334770798,1723541444701,-500.0,0.00013972,2]
[334770799,1723541444712,-357.60710396,0.00013972,2]
[334770800,1723541444722,-500.0,0.00013972,2]
[334770801,1723541444731,-1064.12,0.00013972,2]
[334770802,1723541444741,-500.0,0.00013972,2]
[334770803,1723541444751,-6203.45,0.00013972,2]
[334770804,1723541444761,-500.0,0.00013972,2]
[334770805,1723541444770,-863.91,0.00013972,2]
[334770806,1723541444780,-500.0,0.00013972,2]
[334770807,1723541444790,-879.91,0.00013972,2]
[334770808,1723541444799,-500.0,0.00013972,2]
[334770809,1723541444810,-1975.25,0.00013972,2]
[334770810,1723541444820,-500.0,0.00013972,2]
[334770811,1723541444829,-504.02,0.00013972,2]
[334770812,1723541444840,-1644.08,0.00013972,2]
[334770813,1723541444851,-500.0,0.00013972,2]
[334770814,1723541444861,-986.01,0.00013972,2]
[334770815,1723541444871,-500.0,0.00013972,2]
[334770816,1723541444881,-4402.16,0.00013972,2]
[334770817,1723541444890,-500.0,0.00013972,2]
[334770818,1723541444900,-500.0,0.00013972,2]
[334770819,1723541444909,-500.0,0.00013972,2]
[334770820,1723541444919,-500.0,0.00013972,2]
[334770821,1723541444928,-1214.96,0.00013972,2]
[334770822,1723541444939,-909.85,0.00013972,2]
[334770823,1723541444948,-3086.35,0.00013972,2]
[334770824,1723541444957,-506.44736509,0.00013972,2]
[334770825,1723541444967,-500.0,0.00013972,2]
[334770826,1723541444976,-500.0,0.00013972,2]
[334770827,1723541444986,-589.21,0.00013972,2]
[334770828,1723541444995,-1226.0,0.00013972,2]
[334770829,1723541445004,-685.7,0.00013972,2]
[334770830,1723541445014,-500.0,0.00013972,2]
[334770831,1723541445023,-500.0,0.00013972,2]
[334770832,1723541445033,-500.0,0.00013972,2]
[334770833,1723541445043,-1252.38,0.00013972,2]
[334770834,1723541445052,-500.0,0.00013972,2]
[334770835,1723541445062,-689.64,0.00013972,2]
[334770836,1723541445071,-500.0,0.00013972,2]
[334770837,1723541445081,-1136.36,0.00013972,2]
[334770838,1723541445090,-500.0,0.00013972,2]
[334770839,1723541445100,-780.28,0.00013972,2]
[334770840,1723541445109,-1775.88,0.00013972,2]
[334770841,1723541445118,-500.0,0.00013972,2]
[334770842,1723541445127,-500.0,0.00013972,2]
[334770843,1723541445137,-500.0,0.00013972,2]
[334770844,1723541445146,-694.76,0.00013972,2]
[334770845,1723541445156,-3410.05,0.00013972,2]
[334770846,1723541445166,-1236.13,0.00013972,2]
[334770847,1723541445176,-6397.36,0.00013972,2]
[334770848,1723541445185,-500.0,0.00013972,2]
[334770849,1723541445196,-508.37097972,0.00013972,2]
[334770850,1723541445206,-500.0,0.00013972,2]
[334770851,1723541445215,-1276.02,0.00013972,2]
[334770852,1723541445224,-500.0,0.00013972,2]
[334770853,1723541445234,-500.0,0.00013972,2]
[334770854,1723541445244,-500.0,0.00013972,2]
[334770855,1723541445254,-1169.55,0.00013972,2]
[334770856,1723541445263,-500.0,0.00013972,2]
[334770857,1723541445272,-500.0,0.00013972,2]
[334770858,1723541445282,-500.0,0.00013972,2]
[334770859,1723541445291,-3473.73,0.00013972,2]
[334770860,1723541445301,-563.84,0.00013972,2]
[334770861,1723541445311,-500.0,0.00013972,2]
[334770862,1723541445320,-1081.86,0.00013972,2]
[334770863,1723541445329,-600.52,0.00013972,2]
[334770864,1723541445339,-696.9,0.00013972,2]
[334770865,1723541445349,-500.0,0.00013972,2]
[334770866,1723541445359,-514.99872219,0.00013972,2]
[334770867,1723541445369,-500.0,0.00013972,2]
[334770868,1723541445379,-500.0,0.00013972,2]
[334770869,1723541445388,-926.5,0.00013972,2]
[334770870,1723541445398,-500.0,0.00013972,2]
[334770871,1723541445408,-715.08,0.00013972,2]
[334770872,1723541445417,-507.12364159,0.00013972,2]
[334770873,1723541445427,-500.0,0.00013972,2]
[334770874,1723541445436,-500.0,0.00013972,2]
[334770875,1723541445448,-503.4939137,0.00013972,2]
[334770876,1723541445458,-500.0,0.00013972,2]
[334770877,1723541445468,-524.46,0.00013972,2]
[334770878,1723541445477,-502.55,0.00013972,2]
[334770879,1723541445487,-855.06,0.00013972,2]
[334770880,1723541445496,-500.0,0.00013972,2]
[334770881,1723541445506,-500.0,0.00013972,2]
[334770882,1723541445515,-3820.19,0.00013972,2]
[334770883,1723541445525,-1998.13,0.00013972,2]
[334770884,1723541445535,-925.93,0.00013972,2]
[334770885,1723541445545,-830.94,0.00013972,2]
[334770886,1723541445557,-1086.54674775,0.00013972,2]
[334770897,1723541642843,500.0,0.00025,60]
[334770898,1723541985538,335.26,0.00025,60]
[334770899,1723542434169,-300.0,9.998e-05,2]
[334770900,1723542434190,-320.08358525,9.999e-05,2]
[334770901,1723542434214,-728.34861839,9.999e-05,2]
[334770902,1723542434236,-694.90272385,9.999e-05,2]
[334770903,1723542434259,-617.22964815,9.999e-05,2]
[334770904,1723542434282,-208.48867553,9.999e-05,2]
[334770905,1723542434303,-810.88959894,9.999e-05,2]
[334770906,1723542434325,-189.9631639,9.999e-05,2]
[334770907,1723542434348,-156.78137498,9.999e-05,2]
[334770908,1723542434370,-205.42133969,9.999e-05,2]
[334770909,1723542434399,-611.38828625,9.999e-05,2]
[334770910,1723542434423,-154.74467129,9.999e-05,2]
[334770911,1723542434446,-154.74467129,9.999e-05,2]
[334770912,1723542434468,-174.72672334,9.999e-05,2]
[334770913,1723542434491,-241.78515989,9.999e-05,2]
[334770914,1723542434513,-209.42836987,9.999e-05,2]
[334770915,1723542434534,-188.45659018,9.999e-05,2]
[334770916,1723542434556,-301.22415851,9.999e-05,2]
[334770917,1723542434580,-569.2097652,9.999e-05,2]
[334770918,1723542434604,-183.31414419,9.999e-05,2]
[334770919,1723542434626,-165.7378718,9.999e-05,2]
[334770920,1723542434648,-210.60883339,9.999e-05,2]
[334770921,1723542434669,-156.91451497,9.999e-05,2]
[334770922,1723542434692,-154.74467129,9.999e-05,2]
[334770923,1723542434715,-543.67907992,9.999e-05,2]
[334770924,1723542434738,-157.00320308,9.999e-05,2]
[334770925,1723542434759,-155.79360232,9.999e-05,2]
[334770926,1723542434780,-289.29346482,9.999e-05,2]
[334770927,1723542434800,-665.04001235,9.999e-05,2]
[334770928,1723542434824,-187.65948452,9.999e-05,2]
[334770929,1723542547126,-300.0,9.998e-05,2]
[334770930,1723542547147,-662.70888679,9.999e-05,2]
[334770931,1723542547170,-307.30419818,9.999e-05,2]
[334770932,1723542547191,-242.1379875,9.999e-05,2]
[334770933,1723542547214,-932.99527997,9.999e-05,2]
[334770934,1723542547235,-157.14199098,9.999e-05,2]
[334770935,1723542547255,-250.59023246,9.999e-05,2]
[334770936,1723542547278,-256.09370511,9.999e-05,2]
[334770937,1723542547299,-55.59071812,9.999e-05,2]
[334770942,1723542560108,-155.57729747,9.999e-05,2]
[334770943,1723542560129,-345.80268948,9.999e-05,2]
[334770978,1723542632233,-300.0,9.998e-05,2]
[334770980,1723542632243,-500.66455879,9.999e-05,2]
[334770982,1723542632252,-154.74467129,9.999e-05,2]
[334770984,1723542632262,-532.72454116,9.999e-05,2]
[334770986,1723542632272,-251.45219724,9.999e-05,2]
[334770988,1723542632282,-306.51028623,9.999e-05,2]
[334770990,1723542632296,-154.74467129,9.999e-05,2]
[334770992,1723542632306,-313.78271879,9.999e-05,2]
[334770994,1723542632317,-203.13717281,9.999e-05,2]
[334770996,1723542632327,-154.74467129,9.999e-05,2]
[334770998,1723542632336,-809.49275165,9.999e-05,2]
[334771000,1723542632346,-1722.31196851,9.999e-05,2]
[334771003,1723542632357,-174.72672334,9.999e-05,2]
[334771005,1723542632367,-158.63524894,9.999e-05,2]
[334771007,1723542632376,-320.08358525,9.999e-05,2]
[334771009,1723542632386,-569.2097652,9.999e-05,2]
[334771011,1723542632396,-208.99189581,9.999e-05,2]
[334771013,1723542632406,-168.4775561,9.999e-05,2]
[334771015,1723542632415,-694.90272385,9.999e-05,2]
[334771017,1723542632425,-374.20177059,9.999e-05,2]
[334771019,1723542632434,-205.42133969,9.999e-05,2]
[334771020,1723542632444,-156.78137498,9.999e-05,2]
[334771022,1723542632453,-183.31414419,9.999e-05,2]
[334771024,1723542632462,-189.9631639,9.999e-05,2]
[334771026,1723542632472,-14.73049911,9.999e-05,2]
[334771086,1723542638460,-145.61530919,9.999e-05,2]
[334771088,1723542638472,-850.36837131,9.999e-05,2]
[334771090,1723542638482,-205.42133969,9.999e-05,2]
[334771092,1723542638492,-288.10768054,0.0001,2]
[334771094,1723542638503,-413.41235077,0.0001,2]
[334771096,1723542638515,-154.74467129,0.0001,2]
[334771097,1723542638526,-420.0,0.00010998,2]
[334771098,1723542638538,-24900.0,0.00011351,2]
[334771099,1723542638550,-250.0,0.00011483,2]
[334771100,1723542638561,-250.0,0.00011515,2]
[334771101,1723542638571,-250.0,0.00011546,2]
[334771102,1723542638581,-250.0,0.00011578,2]
[334771103,1723542638591,-250.0,0.0001161,2]
[334771104,1723542638603,-250.0,0.00011641,2]
[334771105,1723542638614,-250.0,0.00011673,2]
[334771106,1723542638624,-250.0,0.00011704,2]
[334771107,1723542638634,-250.0,0.00011736,2]
[334771108,1723542638643,-250.0,0.00011767,2]
[334771109,1723542638653,-250.0,0.00011799,2]
[334771110,1723542638664,-250.0,0.0001183,2]
[334771111,1723542638674,-250.0,0.00011862,2]
[334771112,1723542638685,-250.0,0.00011893,2]
[334771114,1723542638695,-250.0,0.00011925,2]
[334771115,1723542638706,-250.0,0.00011956,2]
[334771116,1723542638716,-250.0,0.00011988,2]
[334771117,1723542638726,-250.0,0.00012019,2]
[334771118,1723542638736,-250.0,0.00012051,2]
[334771119,1723542638747,-250.0,0.00012082,2]
[334771120,1723542638758,-587.0,0.00012098,2]
[334771121,1723542638769,-250.59023246,0.0001212,2]
[334771122,1723542638780,-153.0,0.00012603,2]
[334771123,1723542638792,-153.0,0.00012603,2]
[334771124,1723542638804,-153.0,0.00012943,2]
[334771125,1723542638814,-823.0,0.00013307,2]
[334771126,1723542638824,-153.0,0.00013341,2]
[334771127,1723542638835,-153.0,0.00013478,2]
[334771128,1723542638846,-250.0,0.000135,2]
[334771129,1723542638856,-1936.13020376,0.00013598,2]
[334771130,1723542638866,-200.0,0.00013673,2]
[334771131,1723542638877,-200.0,0.00013673,2]
[334771132,1723542638890,-200.0,0.00013673,2]
[334771133,1723542638900,-200.0,0.00013673,2]
[334771134,1723542638912,-200.11390599,0.00013673,2]
[334771135,1723542638923,-200.0,0.00013673,2]
[334771136,1723542638934,-153.0,0.00013685,2]
[334771137,1723542638944,-153.0,0.00013685,2]
[334771138,1723542638954,-153.0,0.00013685,2]
[334771139,1723542638966,-153.0,0.00013685,2]
[334771140,1723542638975,-153.0,0.00013685,2]
[334771141,1723542638986,-153.0,0.00013685,2]
[334771142,1723542638995,-153.0,0.00013685,2]
[334771143,1723542639006,-153.0,0.00013685,2]
[334771144,1723542639016,-153.0,0.00013685,2]
[334771145,1723542639027,-153.0,0.00013685,2]
[334771146,1723542639038,-153.0,0.00013685,2]
[334771147,1723542639052,-153.0,0.00013685,2]
[334771148,1723542639062,-153.0,0.00013685,2]
[334771149,1723542639072,-243.0,0.00013685,2]
[334771150,1723542639082,-243.0,0.00013685,2]
[334771151,1723542639092,-243.0,0.00013685,2]
[334771152,1723542639101,-243.0,0.00013685,2]
[334771153,1723542639111,-243.0,0.00013685,2]
[334771154,1723542639121,-243.0,0.00013685,2]
[334771155,1723542639130,-243.0,0.00013685,2]
[334771156,1723542639140,-243.0,0.00013685,2]
[334771157,1723542639151,-243.0,0.00013685,2]
[334771158,1723542639161,-243.0,0.00013685,2]
[334771159,1723542639171,-243.0,0.00013685,2]
[334771160,1723542639180,-243.0,0.00013685,2]
[334771161,1723542639192,-243.0,0.00013685,2]
[334771162,1723542639202,-243.0,0.00013685,2]
[334771163,1723542639212,-243.0,0.00013685,2]
[334771164,1723542639223,-243.0,0.00013685,2]
[334771165,1723542639233,-243.0,0.00013685,2]
[334771166,1723542639244,-153.0,0.00013685,2]